fUSD/lending_fUSD_20240227
["ID","MTS","AMOUNT","RATE_DAILY","PERIOD"]
[315480060,1709071881905,-940.01,0.00023999,2]
[315480061,1709071881914,-940.01,0.00023999,2]
[315480062,1709071881925,-749.61,0.00023999,2]
[315480063,1709071881934,-367.90502215,0.00023999,2]
[315480064,1709071881944,-940.01,0.00023999,2]
[315480065,1709071881954,-549.0397408,0.00023999,2]
[315480066,1709071881964,-940.01,0.00023999,2]
[315480067,1709071881974,-749.61,0.00023999,2]
[315480068,1709071881985,-940.01,0.00023999,2]
[315480069,1709071881996,-749.61,0.00023999,2]
[315480070,1709071882008,-367.90502215,0.00023999,2]
[315480071,1709071882020,-940.01,0.00023999,2]
[315480072,1709071882030,-749.61,0.00023999,2]
[315480073,1709071882040,-549.0397408,0.00023999,2]
[315480074,1709071882051,-940.01,0.00023999,2]
[315480075,1709071882061,-749.7,0.00023999,2]
[315480076,1709071882070,-367.90502215,0.00023999,2]
[315480077,1709071882079,-940.01,0.00023999,2]
[315480078,1709071882089,-549.0397408,0.00023999,2]
[315480079,1709071882098,-940.06369232,0.00023999,2]
[315480080,1709071882109,-367.90502215,0.00023999,2]
[315480081,1709071882119,-549.0397408,0.00023999,2]
[315480082,1709071882128,-367.90502215,0.00023999,2]
[315480083,1709071882138,-549.0397408,0.00023999,2]
[315480084,1709071882147,-367.90502215,0.00023999,2]
[315480085,1709071882157,-549.0397408,0.00023999,2]
[315480086,1709071882167,-367.90502215,0.00023999,2]
[315480087,1709071882189,-367.90502215,0.00023999,2]
[315480088,1709071882206,-549.0397408,0.00023999,2]
[315480089,1709071882227,-367.90502215,0.00023999,2]
[315480090,1709071882244,-549.0397408,0.00023999,2]
[315480091,1709071882260,-367.90502215,0.00023999,2]
[315480092,1709071882278,-549.0397408,0.00023999,2]
[315480093,1709071882294,-367.90502215,0.00023999,2]
[315480094,1709071882312,-549.0397408,0.00023999,2]
[315480095,1709071882331,-367.90502215,0.00023999,2]
[315480096,1709071882348,-549.0397408,0.00023999,2]
[315480097,1709071882370,-367.90502215,0.00023999,2]
[315480098,1709071882385,-549.0397408,0.00023999,2]
[315480099,1709071882400,-549.0397408,0.00023999,2]
[315480100,1709071882415,-367.90502215,0.00023999,2]
[315480101,1709071882430,-549.0397408,0.00023999,2]
[315480102,1709071882445,-367.90502215,0.00023999,2]
[315480103,1709071882459,-549.0397408,0.00023999,2]
[315480104,1709071882474,-367.90502215,0.00023999,2]
[315480105,1709071882489,-549.0397408,0.00023999,2]
[315480106,1709071882503,-367.90502215,0.00023999,2]
[315480107,1709071882518,-549.0397408,0.00023999,2]
[315480108,1709071882533,-367.90502215,0.00023999,2]
[315480109,1709071882548,-549.0397408,0.00023999,2]
[315480110,1709071882562,-150.0,0.00023999,4]
[315480111,1709071882576,-150.0,0.00024,4]
[315480112,1709071882590,-192.66676437,0.00024,4]
[315480113,1709071882605,-190.68558938,0.00024,4]
[315480114,1709071882620,-175.30609965,0.00024,4]
[315480115,1709071882634,-159.10663602,0.00024,4]
[315480116,1709071882649,-194.56302804,0.00024,4]
[315480117,1709071882664,-158.06196899,0.00024,4]
[315480118,1709071882679,-167.89204847,0.00024,4]
[315480119,1709071882695,-168.93196118,0.00024,4]
[315480120,1709071882709,-1769418.60283261,0.00024,30]
[315480121,1709071883435,-570.72906387,0.00024,30]
[315480122,1709071883453,-500.0,0.00023835,2]
[315480123,1709071883462,-1499.9997619,0.00024,30]
[315480124,1709071883688,-382.88143247,0.00022898,2]
[315480125,1709071883700,-1055.48856753,0.00022898,2]
[315480126,1709071883710,-227.460041,0.0002297,7]
[315480127,1709071883719,-500.0,0.00023835,2]
[315480128,1709071883728,-404.09955599,0.00023835,2]
[315480129,1709071883740,-95.90044401,0.00023835,2]
[315480130,1709071883749,-500.0,0.00023835,2]
[315480131,1709071883758,-140.02295599,0.00023835,2]
[315480132,1709071883770,-10.97704401,0.00023835,2]
[315480133,1709071883779,-162.347423,0.00023835,2]
[315480134,1709071883788,-330.17553299,0.00023873,2]
[315480135,1709071883800,-169.82446701,0.00023873,2]
[315480136,1709071883810,-500.0,0.00023899,2]
[315480137,1709071883820,-172.17553299,0.00023961,2]
[315480138,1709071883833,-327.82446701,0.00023961,2]
[315480139,1709071883845,-411.07,0.00023973,2]
[315480140,1709071883855,-211.10553299,0.00024,30]
[315480141,1709071883866,-7298.27462943,0.00024,30]
[315480142,1709071883879,-1484.88852493,0.00024,30]
[315480143,1709071883891,-1312.23922792,0.00024,30]
[315480144,1709072026188,857.00119354,0.00015781,7]
[315480145,1709072200507,5754.306,0.0003,120]
[315480146,1709072263009,-150.0,0.0003116,30]
[315480147,1709072263032,-150.0,0.0003116,30]
[315480148,1709072263058,-200.0,0.0003116,30]
[315480149,1709072263080,-200.0,0.0003116,30]
[315480150,1709072263103,-200.0,0.0003116,30]
[315480151,1709072263126,-200.0,0.0003116,30]
[315480152,1709072263148,-20000.0,0.0003116,30]
[315480153,1709072263171,-15000.0,0.0003116,30]
[315480154,1709072263193,-10000.0,0.0003116,30]
[315480155,1709072263223,-5000.0,0.0003116,30]
[315480156,1709072263244,-156.20189933,0.0003116,30]
[315480157,1709072263266,-11487.68615659,0.0003116,30]
[315480158,1709072263288,-302.07052891,0.0003116,30]
[315480159,1709072263310,-987.9009622,0.0003116,30]
[315480160,1709072263331,-233.68188141,0.0003116,31]
[315480161,1709072263354,-300.0,0.0003116,30]
[315480162,1709072263376,-300.0,0.0003116,31]
[315480163,1709072263398,-150.0,0.0003116,30]
[315480164,1709072263420,-156.589999,0.0003116,30]
[315480165,1709072263446,-150.0,0.0003116,30]
[315480166,1709072263468,-339.0,0.0003116,30]
[315480167,1709072263491,-181.2,0.0003116,30]
[315480168,1709072263514,-1000.0,0.0003116,31]
[315480169,1709072263536,-28507.63048994,0.0003116,30]
[315480170,1709072263558,-84618.51255987,0.0003116,30]
[315480171,1709072263580,-116046.30750579,0.0003116,30]
[315480172,1709072263602,-150.0,0.0003116,30]
[315480173,1709072263622,-290.18853702,0.0003116,30]
[315480174,1709072263643,-290.18853702,0.0003116,30]
[315480175,1709072263665,-290.18853702,0.0003116,30]
[315480176,1709072263686,-290.18853702,0.0003116,30]
[315480177,1709072263707,-1000.0,0.0003116,30]
[315480178,1709072263728,-1000.0,0.0003116,30]
[315480179,1709072263750,-1000.0,0.0003116,30]
[315480180,1709072263771,-1000.0,0.0003116,30]
[315480181,1709072263792,-1000.0,0.0003116,30]
[315480182,1709072263813,-1000.0,0.0003116,30]
[315480183,1709072263834,-666.33813621,0.0003116,30]
[315480184,1709072263855,-2913.93506337,0.0003116,30]
[315480185,1709072263876,-471.39901766,0.0003116,30]
[315480186,1709072263898,-352.33605043,0.0003116,30]
[315480187,1709072263920,-814.11091952,0.0003116,30]
[315480188,1709072263941,-2540.82060618,0.0003116,30]
[315480189,1709072263964,-970.60661782,0.0003116,30]
[315480190,1709072263986,-681.7326641,0.0003116,30]
[315480191,1709072264008,-516.1056698,0.0003116,30]
[315480192,1709072264031,-2153.79160526,0.0003116,30]
[315480193,1709072264054,-1323.79664958,0.0003116,30]
[315480194,1709072264075,-2500.0,0.0003116,30]
[315480195,1709072264277,-1933.99308646,0.0003116,30]
[315480196,1709072264299,-797.37456014,0.0003116,30]
[315480197,1709072264331,-3000.0,0.0003116,30]
[315480198,1709072264365,-805.00136156,0.0003116,30]
[315480199,1709072264388,-192.68045425,0.0003116,30]
[315480200,1709072264410,-895.42803164,0.0003116,30]
[315480201,1709072264434,-325.05239416,0.0003116,30]
[315480202,1709072264456,-1817.55139417,0.0003116,30]
[315480203,1709072264478,-375.2435251,0.0003116,30]
[315480204,1709072264500,-2813.15700612,0.0003116,30]
[315480205,1709072264521,-1144.19279563,0.0003116,30]
[315480206,1709072264543,-1001.0,0.0003116,30]
[315480207,1709072264568,-8134.38035983,0.0003116,30]
[315480208,1709072264590,-823.98174802,0.0003116,30]
[315480209,1709072264611,-3809.92714397,0.0003116,30]
[315480210,1709072264632,-188.40245631,0.0003116,30]
[315480211,1709072264653,-246.76951592,0.0003116,30]
[315480212,1709072264677,-2666.93187281,0.0003116,30]
[315480213,1709072264700,-1881.46075929,0.0003116,30]
[315480214,1709072264723,-1285.42339878,0.0003116,30]
[315480215,1709072264744,-1765.69863921,0.0003116,30]
[315480216,1709072264770,-1622.36348018,0.0003116,30]
[315480217,1709072264791,-1314.67707496,0.0003116,30]
[315480218,1709072264813,-475.00396524,0.0003116,30]
[315480219,1709072264834,-1230.7399256,0.0003116,30]
[315480220,1709072264855,-476.16353683,0.0003116,30]
[315480221,1709072264881,-3974.86564988,0.0003116,30]
[315480222,1709072264902,-1022.94118525,0.0003116,30]
[315480223,1709072264923,-1066.25953286,0.0003116,30]
[315480224,1709072265081,-1040.93907391,0.0003116,30]
[315480225,1709072265104,-50000.0,0.0003116,30]
[315480226,1709072265126,-2857.04564592,0.0003116,30]
[315480227,1709072265148,-200.0,0.0003116,30]
[315480228,1709072265171,-150.0,0.0003116,30]
[315480229,1709072265195,-200.0,0.0003116,30]
[315480230,1709072265217,-881.07296798,0.0003116,30]
[315480231,1709072265239,-351.71691822,0.0003116,30]
[315480232,1709072265261,-343.87008342,0.0003116,30]
[315480233,1709072265283,-150.0,0.0003116,30]
[315480234,1709072265307,-3250.62012603,0.0003116,30]
[315480235,1709072265328,-1000.0,0.0003116,30]
[315480236,1709072265352,-1000.0,0.0003116,30]
[315480237,1709072265374,-707.0,0.0003116,30]
[315480238,1709072265396,-1000.0,0.0003116,30]
[315480239,1709072265418,-707.0,0.0003116,30]
[315480240,1709072265440,-823.02858036,0.0003116,30]
[315480241,1709072265462,-181.09912946,0.0003116,33]
[315480242,1709072265485,-999.8801944,0.0003116,30]
[315480243,1709072265509,-3466.35314526,0.0003116,30]
[315480244,1709072265531,-3040.31764638,0.0003116,120]
[315480245,1709072265553,-1764.0797916,0.0003116,30]
[315480246,1709072265575,-3879.184723,0.0003116,30]
[315480247,1709072265596,-5082.98731622,0.0003116,120]
[315480248,1709072265618,-916.05774157,0.0003116,30]
[315480249,1709072265645,-18530.51635783,0.0003116,30]
[315480250,1709072265668,-188.02115155,0.0003116,60]
[315480251,1709072265694,-3440.58463518,0.0003116,120]
[315480252,1709072265716,-1000.0,0.0003116,30]
[315480253,1709072265739,-1149.0,0.0003116,120]
[315480254,1709072265762,-595.20360479,0.0003116,120]
[315480255,1709072265784,-1155.55488201,0.0003116,120]
[315480256,1709072265806,-167.253032,0.0003116,30]
[315480257,1709072265828,-1000.0,0.0003116,90]
[315480258,1709072265851,-1000.0,0.0003116,90]
[315480259,1709072265873,-1000.0,0.0003116,90]
[315480260,1709072265897,-1000.0,0.0003116,90]
[315480261,1709072265918,-889.899999,0.0003116,90]
[315480262,1709072265942,-1000.0,0.0003116,120]
[315480263,1709072265968,-1000.0,0.0003116,120]
[315480264,1709072265989,-1000.0,0.0003116,120]
[315480265,1709072266015,-1000.0,0.0003116,120]
[315480266,1709072266036,-889.899999,0.0003116,120]
[315480267,1709072266058,-1000.0,0.0003116,30]
[315480268,1709072266080,-1037.8167396,0.0003116,30]
[315480269,1709072266101,-8000.0,0.0003116,48]
[315480270,1709072266123,-698.1167398,0.0003116,120]
[315480271,1709072266145,-200.0,0.0003116,30]
[315480272,1709072266166,-200.0,0.0003116,30]
[315480273,1709072266192,-200.0,0.0003116,30]
[315480274,1709072266214,-200.0,0.0003116,30]
[315480275,1709072266236,-200.0,0.0003116,30]
[315480276,1709072266259,-500.0,0.0003116,120]
[315480277,1709072266282,-798.45058022,0.0003116,120]
[315480278,1709072266310,-648.25521007,0.0003116,30]
[315480279,1709072271848,-351.74478993,0.0003116,30]
[315480280,1709072271870,-997.0,0.0003116,30]
[315480281,1709072271893,-1000.0,0.0003116,30]
[315480282,1709072271914,-997.0,0.0003116,30]
[315480283,1709072271936,-1000.0,0.0003116,30]
[315480284,1709072271964,-997.0,0.0003116,30]
[315480285,1709072271985,-1781.89809,0.0003116,30]
[315480286,1709072272007,-239.232425,0.0003116,30]
[315480287,1709072272029,-157.6,0.0003116,30]
[315480288,1709072272053,-1344.41491464,0.0003116,30]
[315480289,1709072272074,-358.11305525,0.0003116,30]
[315480290,1709072272095,-238.771196,0.0003116,63]
[315480291,1709072272117,-986.0,0.0003116,30]
[315480292,1709072272138,-763.683493,0.0003116,30]
[315480293,1709072272314,-150.1,0.0003116,30]
[315480294,1709072272337,-150.781054,0.0003116,30]
[315480295,1709072281595,-500000.0,0.00024,30]
[315480296,1709072285597,-500000.0,0.00024,30]
[315480297,1709072288861,-500000.0,0.00024,30]
[315480298,1709072290732,239.232425,0.0003116,30]
[315480299,1709072292855,-500000.0,0.00024,30]
[315480300,1709072295992,-500000.0,0.00024,30]
[315480301,1709072300944,-94798.62893064,0.00024,30]
[315480302,1709072300968,-845298.32887879,0.00024,30]
[315480303,1709072300997,-2845156.92199899,0.00024,30]
[315480304,1709072301020,-806738.24941358,0.00024,30]
[315480305,1709072301043,-408007.870778,0.00024,30]
[315480306,1709072450577,618291.69000308,0.0003,120]
[315480307,1709072458134,1538.26,0.00027,120]
[315480308,1709072473499,500000.0,0.00026,120]
[315480309,1709072473520,130000.0,0.00026,120]
[315480310,1709072534622,680000.0,0.00026,120]
[315480313,1709073031395,-169.29,0.00016712,2]
[315480314,1709073031405,-155.0,0.00019243,2]
[315480315,1709073031414,-175.66,0.00019244,2]
[315480316,1709073031425,-601.56,0.00019244,2]
[315480317,1709073031435,-162.91684014,0.00019781,2]
[315480318,1709073031444,-150.0,0.0001988,2]
[315480319,1709073031453,-32.14995803,0.0001988,2]
[315480320,1709073031465,-267.85004197,0.0001988,2]
[315480321,1709073031474,-618.14995803,0.00019881,2]
[315480322,1709073031485,-928.53687171,0.00019881,2]
[315480323,1709073031520,-7529.49206871,0.00019881,2]
[315480324,1709073031529,-3896.98734224,0.00019882,2]
[315480325,1709073031538,-150.0,0.00020969,2]
[315480326,1709073031548,-182.76,0.00020989,2]
[315480327,1709073031558,-453.93,0.00021011,2]
[315480328,1709073031567,-162.74,0.00021053,2]
[315480329,1709073031577,-1728.61,0.00021121,2]
[315480330,1709073031586,-1000.0,0.0002113,2]
[315480331,1709073031596,-250.0,0.00021172,2]
[315480332,1709073031605,-600.0,0.00021195,2]
[315480333,1709073031614,-410.84,0.000212,2]
[315480334,1709073031623,-2499.24,0.00021256,2]
[315480335,1709073031632,-161.88028768,0.00021312,2]
[315480336,1709073031641,-156.0,0.00021337,2]
[315480337,1709073031650,-23900.0,0.00021368,2]
[315480338,1709073031659,-2000.0,0.00021368,2]
[315480339,1709073031668,-205.0,0.00021448,2]
[315480340,1709073031677,-2579.81,0.00021451,2]
[315480341,1709073031686,-777.22,0.00021508,2]
[315480342,1709073031696,-157.52,0.00021613,2]
[315480343,1709073031705,-157.52,0.00021726,2]
[315480344,1709073031714,-250.0,0.00021756,2]
[315480345,1709073031723,-2526.89,0.00021776,2]
[315480346,1709073031733,-157.52,0.00021839,2]
[315480347,1709073031742,-2580.27,0.00021879,2]
[315480348,1709073031751,-207.7764,0.000219,2]
[315480349,1709073031760,-171.14,0.00021918,2]
[315480350,1709073031769,-155.45,0.00021918,2]
[315480351,1709073031778,-1744.94839608,0.00021918,2]
[315480352,1709073031825,-1145.05160392,0.00021918,2]
[315480353,1709073031835,-1190.0,0.00021918,2]
[315480354,1709073031845,-157.52,0.00021951,2]
[315480356,1709073031854,-554.75146646,0.00021982,2]
[315480358,1709073031866,-6649.7445477,0.00021982,2]
[315480360,1709073031877,-343.15,0.00021982,2]
[315480363,1709073031892,-11374.0,0.00021982,2]
[315480366,1709073031916,-4514.46448584,0.00021982,2]
[315480369,1709073031925,-1489.0,0.00022,3]
[315480371,1709073031935,-8994.2124,0.00022,3]
[315480373,1709073031944,-400.0,0.00022053,2]
[315480375,1709073031953,-157.52,0.00022064,2]
[315480376,1709073031962,-174.48703896,0.00022076,2]
[315480377,1709073031971,-160.09153094,0.00022106,3]
[315480378,1709073031980,-7562.8626,0.0002215,2]
[315480379,1709073031989,-157.52,0.00022177,2]
[315480380,1709073031998,-171.14,0.00022283,2]
[315480381,1709073032006,-155.45,0.00022283,2]
[315480382,1709073032015,-157.52,0.00022289,2]
[315480383,1709073032024,-157.52,0.00022402,2]
[315480384,1709073032033,-156.0,0.00022433,2]
[315480385,1709073032042,-174.48703895,0.00022438,2]
[315480386,1709073032050,-5000.0,0.000225,2]
[315480387,1709073032059,-157.52,0.00022514,2]
[315480388,1709073032068,-410.84,0.0002261,2]
[315480389,1709073032077,-157.52,0.00022627,2]
[315480390,1709073032086,-171.14,0.00022648,2]
[315480391,1709073032095,-155.45,0.00022648,2]
[315480392,1709073032103,-157.52,0.0002274,2]
[315480393,1709073032113,-1728.61,0.00022764,2]
[315480394,1709073032122,-567.572442,0.00022781,2]
[315480395,1709073032130,-241.722575,0.00022781,2]
[315480396,1709073032139,-161.354156,0.00022781,2]
[315480397,1709073032148,-382.716996,0.00022781,2]
[315480398,1709073032157,-180.906795,0.00022781,2]
[315480399,1709073032166,-155.226254,0.00022781,2]
[315480400,1709073032175,-622.993439,0.00022781,2]
[315480401,1709073032184,-461.358789,0.00022781,2]
[315480402,1709073032193,-174.48703895,0.000228,2]
[315480403,1709073032203,-300.0,0.0002284,2]
[315480404,1709073032217,-155212.25075863,0.00022896,2]
[315480417,1709073037369,-315.50843989,0.00022896,2]
[315480418,1709073037426,-2237.07109089,0.00022896,2]
[315480419,1709073037438,-2837.128936,0.00022896,2]
[315480420,1709073037454,-1366.3199996,0.00022896,2]
[315480421,1709073037467,-1119.26696351,0.00022896,2]
[315480422,1709073037540,-515.78669105,0.00022896,2]
[315480423,1709073037552,-51917.55161194,0.00022896,2]
[315480424,1709073037564,-368.38792828,0.00022896,2]
[315480425,1709073037575,-1041.73750803,0.00022896,2]
[315480426,1709073037587,-18939.06194893,0.00022896,2]
[315480427,1709073037654,-1576.10650313,0.00022896,2]
[315480428,1709073037666,-7641.29785744,0.00022896,2]
[315480436,1709073040000,-3412.49897775,0.00022896,2]
[315480437,1709073040013,-424.54446131,0.00022896,2]
[315480438,1709073040057,-154358.48032362,0.00022896,2]
[315480439,1709073040067,-311.68326839,0.000229,2]
[315480440,1709073040077,-151.0,0.00022931,2]
[315480441,1709073040087,-190.54226075,0.00022971,2]
[315480442,1709073040096,-8810.45767014,0.00022975,2]
[315480443,1709073040106,-1144.20081568,0.00022975,2]
[315480444,1709073040116,-30600.83365482,0.00022975,2]
[315480445,1709073040132,-938.06556108,0.00022975,2]
[315480446,1709073040145,-510.50635156,0.00022975,2]
[315480447,1709073040173,-1042.45216024,0.00022975,2]
[315480449,1709073040887,-21801.82795539,0.00022975,2]
[315480451,1709073040900,-96291.66279922,0.00022981,2]
[315480453,1709073040911,-2750.0,0.00023,3]
[315480455,1709073040920,-707.0,0.00023,2]
[315480457,1709073040929,-707.0,0.00023,2]
[315480459,1709073040938,-997.0,0.00023,6]
[315480461,1709073040948,-997.0,0.00023,6]
[315480463,1709073040957,-250.0,0.00023,2]
[315480465,1709073040967,-150.0,0.00023,2]
[315480467,1709073040978,-150.0,0.00023,2]
[315480469,1709073040988,-150.0,0.00023,2]
[315480471,1709073040998,-500.0,0.00023,2]
[315480473,1709073041009,-259.69,0.00023,2]
[315480475,1709073041020,-177.9,0.00023,2]
[315480477,1709073041030,-5000.0,0.00023,2]
[315480480,1709073041041,-161.99,0.00023012,2]
[315480481,1709073041051,-171.14,0.00023014,2]
[315480483,1709073041062,-155.45,0.00023014,2]
[315480486,1709073041073,-567.572442,0.00023066,2]
[315480488,1709073041083,-161.354156,0.00023066,2]
[315480489,1709073041093,-382.716996,0.00023066,2]
[315480491,1709073041102,-180.906795,0.00023066,2]
[315480494,1709073041113,-622.993439,0.00023066,2]
[315480495,1709073041122,-461.358789,0.00023066,2]
[315480498,1709073041133,-311.68326835,0.00023109,2]
[315480500,1709073041144,-204.04148948,0.00023125,2]
[315480501,1709073041154,-642.40605004,0.00023125,2]
[315480525,1709073041391,-174.29560548,0.00023125,2]
[315480527,1709073041401,-1965.45811528,0.00023126,2]
[315480529,1709073041410,-259.69,0.00023137,2]
[315480531,1709073041419,-155.226254,0.00023161,2]
[315480533,1709073041428,-205.0,0.000232,4]
[315480535,1709073041437,-250.0,0.00023274,2]
[315480537,1709073041446,-259.69,0.00023274,2]
[315480539,1709073041456,-761.65613746,0.00023314,2]
[315480541,1709073041465,-311.68326835,0.00023318,2]
[315480543,1709073041474,-165.15,0.0002335,2]
[315480545,1709073041484,-567.572442,0.0002335,2]
[315480547,1709073041493,-161.354156,0.0002335,2]
[315480549,1709073041502,-382.716996,0.0002335,2]
[315480551,1709073041511,-180.906795,0.0002335,2]
[315480553,1709073041520,-622.993439,0.0002335,2]
[315480555,1709073041529,-461.358789,0.0002335,2]
[315480557,1709073041538,-171.14,0.00023379,2]
[315480559,1709073041547,-155.45,0.00023379,2]
[315480561,1709073041557,-320.82958815,0.000234,2]
[315480563,1709073041566,-259.69,0.00023411,2]
[315480565,1709073041576,-761.65613746,0.00023461,2]
[315480567,1709073041585,-2500.000001,0.0002348,9]
[315480569,1709073041595,-2403.0,0.000235,2]
[315480571,1709073041605,-311.68326835,0.00023526,2]
[315480573,1709073041615,-155.226254,0.0002354,2]
[315480575,1709073041624,-250.0,0.00023548,2]
[315480577,1709073041633,-150.0,0.00023548,2]
[315480579,1709073041643,-150.0,0.00023548,2]
[315480581,1709073041652,-500.0,0.00023548,2]
[315480583,1709073041661,-518.42,0.00023548,2]
[315480585,1709073041670,-177.9,0.00023548,2]
[315480586,1709073041679,-296.59,0.00023604,2]
[315480589,1709073041690,-761.65613746,0.00023607,2]
[315480590,1709073041700,-567.572442,0.00023635,2]
[315480592,1709073041709,-161.354156,0.00023635,2]
[315480594,1709073041718,-382.716996,0.00023635,2]
[315480597,1709073041727,-180.906795,0.00023635,2]
[315480598,1709073041736,-622.993439,0.00023635,2]
[315480600,1709073041746,-461.358789,0.00023635,2]
[315480603,1709073041755,-500.0,0.0002366,2]
[315480605,1709073041764,-204.46914749,0.000237,2]
[315480606,1709073041773,-529.8760682,0.000237,2]
[315480609,1709073041782,-204.46914749,0.00023708,2]
[315480610,1709073041791,-296.84306437,0.00023735,2]
[315480612,1709073041800,-150.94042206,0.00023735,2]
[315480614,1709073041810,-201.42456216,0.00023735,2]
[315480616,1709073041819,-311.68326835,0.00023735,2]
[315480618,1709073041829,-1536.3981543,0.00023735,2]
[315480621,1709073041839,-402.55697207,0.00023735,2]
[315480622,1709073041848,-5000.0,0.00023735,2]
[315480625,1709073041858,-171.14,0.00023744,2]
[315480626,1709073041867,-155.45,0.00023744,2]
[315480629,1709073041877,-296.8430643,0.0002375,2]
[315480631,1709073041887,-761.65613746,0.00023754,2]
[315480632,1709073041896,-296.8430643,0.00023765,2]
[315480635,1709073041907,-777.22,0.00023772,2]
[315480637,1709073041918,-2447.22537675,0.0002378,8]
[315480638,1709073041927,-296.8430643,0.0002378,2]
[315480640,1709073041936,-200.0,0.00023792,2]
[315480643,1709073041946,-800.0,0.00023792,2]
[315480644,1709073041955,-200.0,0.00023792,2]
[315480647,1709073041964,-500.0,0.00023792,2]
[315480649,1709073041973,-296.8430643,0.00023795,2]
[315480650,1709073041982,-1545.28741506,0.00023798,2]
[315480653,1709073041991,-1545.28741503,0.00023798,2]
[315480655,1709073042001,-1545.28741503,0.00023798,2]
[315480657,1709073042010,-1545.28741503,0.00023798,2]
[315480659,1709073042020,-1545.28741503,0.00023798,2]
[315480660,1709073042029,-1545.28741503,0.00023798,2]
[315480662,1709073042038,-1545.28741503,0.00023798,2]
[315480664,1709073042047,-1545.28741503,0.00023798,2]
[315480666,1709073042056,-1545.28741503,0.00023798,2]
[315480669,1709073042065,-193.86263835,0.00023799,2]
[315480670,1709073042074,-55955.20893504,0.000238,4]
[315480673,1709073042087,-56721.98060816,0.000238,4]
[315480690,1709073042409,-1258.0,0.00023061,2]
[315480692,1709073042418,-40372.07067712,0.000238,4]
[315480694,1709073042428,-5000.0,0.000238,2]
[315480695,1709073042437,-18415.66540127,0.000238,3]
[315480696,1709073042822,-1037057.45005673,0.000238,3]
[315480697,1709073042831,-800.0,0.00023808,2]
[315480698,1709073042840,-800.0,0.00023808,2]
[315480699,1709073042850,-400.0,0.00023808,2]
[315480700,1709073042859,-296.8430643,0.0002381,2]
[315480702,1709073042868,-1536.39815428,0.00023818,2]
[315480703,1709073042877,-402.55697205,0.00023818,2]
[315480704,1709073042887,-296.8430643,0.00023825,2]
[315480705,1709073042896,-6789.44132206,0.00023833,2]
[315480706,1709073042905,-167.09888535,0.00023834,2]
[315480707,1709073042915,-568.1439588,0.00023834,2]
[315480708,1709073042924,-579.78696861,0.00023834,2]
[315480709,1709073042933,-535.21782336,0.00023834,2]
[315480710,1709073042943,-358.08814042,0.00023834,2]
[315480711,1709073042952,-370.32211514,0.00023834,2]
[315480712,1709073042962,-384.43778827,0.00023834,2]
[315480713,1709073042971,-536.72575204,0.00023835,2]
[315480714,1709073042981,-500.0,0.00023835,2]
[315480715,1709073042990,-500.0,0.00023835,2]
[315480716,1709073042999,-500.0,0.00023835,2]
[315480717,1709073043008,-500.0,0.00023835,2]
[315480718,1709073043018,-500.0,0.00023835,2]
[315480719,1709073043028,-500.0,0.00023835,2]
[315480720,1709073043038,-500.0,0.00023835,2]
[315480721,1709073043047,-500.0,0.00023835,2]
[315480722,1709073043057,-500.0,0.00023835,2]
[315480723,1709073043066,-500.0,0.00023835,2]
[315480724,1709073043075,-500.0,0.00023835,2]
[315480725,1709073043085,-500.0,0.00023835,2]
[315480726,1709073043094,-500.0,0.00023835,2]
[315480727,1709073043103,-500.0,0.00023835,2]
[315480728,1709073043114,-500.0,0.00023835,2]
[315480729,1709073043122,-500.0,0.00023835,2]
[315480730,1709073043132,-500.0,0.00023835,2]
[315480731,1709073043141,-500.0,0.00023835,2]
[315480732,1709073043151,-500.0,0.00023835,2]
[315480733,1709073043160,-500.0,0.00023835,2]
[315480734,1709073043169,-500.0,0.00023835,2]
[315480735,1709073043178,-511.17081209,0.00023835,2]